bitfinex-derivatives/quotes_BTCF0:USTF0_20250922
["timestamp","ask_amount","ask_price","bid_price","bid_amount"]
[1758570599015,0.27454147,112230.0,112220.0,1.60805244]
[1758570599502,0.27454147,112230.0,112220.0,1.60845244]
[1758570599708,0.27454147,112230.0,112220.0,3.10845244]
[1758570600016,0.02454147,112230.0,112220.0,3.71351591]
[1758570600213,0.0002,112240.0,112220.0,3.44619591]
[1758570600407,0.0004,112250.0,112240.0,0.1243196]
[1758570600604,0.03156173,112270.0,112240.0,2.28997961]
[1758570600809,0.44780969,112280.0,112270.0,0.1118058]
[1758570601015,0.80860969,112280.0,112270.0,1.57981274]
[1758570601315,0.74264796,112280.0,112270.0,1.59230274]
[1758570601513,0.7216,112280.0,112270.0,1.59230274]
[1758570601709,0.722,112280.0,112270.0,1.84230274]
[1758570601912,0.42686173,112290.0,112280.0,0.1117978]
[1758570602212,0.42756173,112290.0,112280.0,1.28462127]
[1758570602408,0.69106347,112290.0,112280.0,0.9895178]
[1758570602609,0.3952,112290.0,112280.0,0.9895178]
[1758570602813,0.3956,112290.0,112280.0,0.1117978]
[1758570603015,0.1233977,112280.0,112270.0,4e-05]
[1758570603313,0.7341977,112280.0,112270.0,4e-05]
[1758570603616,0.7341977,112280.0,112270.0,0.29748]
[1758570603822,0.74129374,112280.0,112270.0,0.3864857]
[1758570604011,0.77285547,112280.0,112270.0,0.3864857]
[1758570604313,0.43385777,112280.0,112270.0,0.4096857]
[1758570604613,0.42676173,112280.0,112270.0,0.4096857]
[1758570604915,0.42716173,112280.0,112270.0,0.4096857]
[1758570605111,0.42876173,112280.0,112270.0,0.4096857]
[1758570605309,0.3996,112280.0,112270.0,0.833411]
[1758570605505,0.38625,112280.0,112270.0,0.535971]
[1758570605703,0.38585,112280.0,112270.0,1.426731]
[1758570605907,0.38625,112280.0,112270.0,1.0154957]
[1758570606108,0.3652,112280.0,112270.0,1.0154957]
[1758570606604,0.3996,112280.0,112270.0,0.1382557]
[1758570606809,0.3996,112280.0,112270.0,1.0029257]
[1758570607017,0.3992,112280.0,112270.0,1.0029257]
[1758570607314,0.3996,112280.0,112270.0,1.0029257]
[1758570607709,0.3996,112280.0,112270.0,1.0154157]
[1758570608516,0.3992,112280.0,112270.0,1.0025257]
[1758570608816,0.3992,112280.0,112270.0,1.0022457]
[1758570609015,0.42647999,112280.0,112270.0,1.0038457]
[1758570609317,0.42647999,112280.0,112270.0,0.9907257]
[1758570609517,0.42647999,112280.0,112270.0,0.1138457]
[1758570609720,0.42647999,112280.0,112270.0,0.9906457]
[1758570610021,0.76547769,112280.0,112270.0,0.8788]
[1758570610319,0.76547769,112280.0,112270.0,0.8784]
[1758570610519,0.76547769,112280.0,112270.0,0.8788]
[1758570611420,0.76547769,112280.0,112270.0,0.00204]
[1758570611621,0.76547769,112280.0,112270.0,0.87876]
[1758570611815,0.76547769,112280.0,112270.0,0.00204]
[1758570612021,1.17671299,112280.0,112270.0,0.87864]
[1758570612224,1.19994696,112280.0,112270.0,0.87864]
[1758570612521,0.78871166,112280.0,112270.0,0.87864]
[1758570613313,0.82027339,112280.0,112270.0,0.00204]
[1758570613518,1.27885129,112280.0,112270.0,0.00204]
[1758570613717,1.24728956,112280.0,112270.0,0.00164]
[1758570613925,1.24728956,112280.0,112270.0,0.00204]
[1758570614315,0.83605426,112280.0,112270.0,0.00204]
[1758570615016,0.58605426,112280.0,112270.0,0.0910457]
[1758570615223,0.57037946,112280.0,112270.0,0.1138457]
[1758570616120,0.57037946,112280.0,112270.0,0.02484]
[1758570616318,0.57037946,112280.0,112270.0,0.00204]
[1758570619425,0.61772206,112280.0,112270.0,0.00204]
[1758570619618,0.61772206,112280.0,112270.0,0.0233]
[1758570619817,0.58605426,112280.0,112270.0,0.0233]
[1758570621723,0.58645426,112280.0,112270.0,0.1258257]
[1758570622028,0.58645426,112280.0,112270.0,0.3883157]
[1758570622029,0.48184998,112280.0,112270.0,0.3883157]
[1758570622227,0.48370656,112280.0,112270.0,0.3883157]
[1758570622430,0.46851543,112280.0,112270.0,0.3883157]
[1758570622626,0.44706543,112280.0,112270.0,0.3883157]
[1758570622825,0.44746543,112280.0,112270.0,1.046031]
[1758570623023,0.44746543,112280.0,112270.0,1.059551]
[1758570623233,0.44706543,112280.0,112270.0,1.059551]
[1758570623431,0.44746543,112280.0,112270.0,1.059551]
[1758570623626,0.44706543,112280.0,112270.0,1.059551]
[1758570623832,0.41571396,112280.0,112270.0,1.059551]
[1758570624326,0.41571396,112280.0,112270.0,0.6483157]
[1758570624533,0.41571396,112280.0,112270.0,1.04079104]
[1758570626929,0.50471166,112280.0,112270.0,1.66595104]
[1758570627236,0.41571396,112280.0,112270.0,1.47555104]
[1758570627535,0.41571396,112280.0,112270.0,1.47595104]
[1758570629235,0.44746543,112280.0,112270.0,1.47595104]
[1758570629531,0.44746543,112280.0,112270.0,1.72595104]
[1758570629831,0.41571396,112280.0,112270.0,1.72595104]
[1758570630231,0.41571396,112280.0,112270.0,1.97595104]
[1758570630734,0.41531396,112280.0,112270.0,1.97595104]
[1758570631125,6e-08,112280.0,112270.0,2.72922638]
[1758570631332,0.0001,112290.0,112280.0,0.1236377]
[1758570631628,0.38879728,112300.0,112290.0,0.1225798]
[1758570631827,0.38869728,112300.0,112290.0,1.3207798]
[1758570632030,0.38869728,112300.0,112290.0,1.71325514]
[1758570632228,0.38909728,112300.0,112290.0,1.71325514]
[1758570632434,0.36843787,112300.0,112290.0,1.71325514]
[1758570632823,0.00763787,112300.0,112290.0,2.39677276]
[1758570633027,0.00963787,112300.0,112290.0,2.39677276]
[1758570633221,0.00923787,112300.0,112290.0,2.39677276]
[1758570633525,0.00963787,112300.0,112290.0,1.52209276]
[1758570634129,0.00923787,112300.0,112290.0,4.27257276]
[1758570634335,0.00963787,112300.0,112290.0,4.27257276]
[1758570634534,0.00763787,112300.0,112290.0,4.27457276]
[1758570634735,0.00863787,112300.0,112290.0,4.27449276]
[1758570635431,0.00763787,112300.0,112290.0,4.27549276]
[1758570636030,0.00763787,112300.0,112290.0,1.52509276]
[1758570636438,0.00763787,112300.0,112290.0,4.27521276]
[1758570636634,0.00763787,112300.0,112290.0,4.29371285]
[1758570637035,0.00763787,112300.0,112290.0,4.29375285]
[1758570637640,0.00763787,112300.0,112290.0,4.29355285]
[1758570638835,0.00763787,112300.0,112290.0,1.54363285]
[1758570639040,0.00763787,112300.0,112290.0,4.29339285]
[1758570639436,0.00763787,112300.0,112290.0,4.04339285]
[1758570640739,0.00723787,112300.0,112290.0,4.04339285]
[1758570640939,0.00763787,112300.0,112290.0,4.04339285]
[1758570642345,0.00763787,112300.0,112290.0,1.29363285]
[1758570642638,0.00763787,112300.0,112290.0,0.52185742]
[1758570642850,0.03057787,112300.0,112290.0,1.33537742]
[1758570643040,0.03057787,112300.0,112290.0,0.25185742]
[1758570643240,0.03057787,112300.0,112290.0,1.75675285]
[1758570643434,0.00763787,112300.0,112290.0,1.75675285]
[1758570643639,0.00763787,112300.0,112290.0,0.9875799]
[1758570643640,0.65409787,112300.0,112290.0,0.9875799]
[1758570643841,0.67716442,112300.0,112290.0,0.9879799]
[1758570644041,0.42716442,112300.0,112290.0,0.9994199]
[1758570644341,0.39150442,112300.0,112290.0,1.42391533]
[1758570644742,0.39110442,112300.0,112290.0,1.42391533]
[1758570644947,0.39150442,112300.0,112290.0,1.42391533]
[1758570645246,0.39110442,112300.0,112290.0,1.42391533]
[1758570645448,0.39150442,112300.0,112290.0,1.42391533]
[1758570645647,0.39110442,112300.0,112290.0,1.0129399]
[1758570645848,0.39150442,112300.0,112290.0,1.42391533]
[1758570646648,0.03070442,112300.0,112290.0,1.42391533]
[1758570647548,0.00763787,112300.0,112290.0,1.42391533]
[1758570647746,0.0307231,112300.0,112290.0,1.42391533]
[1758570649846,0.00763787,112300.0,112290.0,2.09471533]
[1758570650053,0.00763787,112300.0,112290.0,2.34471533]
[1758570650247,0.00723787,112300.0,112290.0,2.34471533]
[1758570650452,0.00763787,112300.0,112290.0,2.34471533]
[1758570651251,0.00723787,112300.0,112290.0,2.34471533]
[1758570651450,0.00763787,112300.0,112290.0,2.34471533]
[1758570651652,0.00763787,112300.0,112290.0,1.47131533]
[1758570651954,0.00763787,112300.0,112290.0,4.21967533]
[1758570652252,0.00763787,112300.0,112290.0,1.47131533]
[1758570652452,0.00763787,112300.0,112290.0,4.21955533]
[1758570652749,0.00763787,112300.0,112290.0,4.20503533]
[1758570652950,0.00763787,112300.0,112290.0,4.21755533]
[1758570653151,0.00763787,112300.0,112290.0,4.22255533]
[1758570653853,0.00763787,112300.0,112290.0,4.22247533]
[1758570656556,0.00763787,112300.0,112290.0,4.20376314]
[1758570659555,0.00763787,112300.0,112290.0,4.20380314]
[1758570662254,0.36843787,112300.0,112290.0,1.09484314]
[1758570662459,0.67613162,112300.0,112290.0,1.70292314]
[1758570662650,0.67613162,112300.0,112290.0,1.45108314]
[1758570662956,0.66296162,112300.0,112290.0,1.63292314]
[1758570664758,0.66296162,112300.0,112290.0,1.53493299]
[1758570665351,0.67613162,112300.0,112290.0,0.1176199]
[1758570665555,0.97040471,112300.0,112290.0,1.28321299]
[1758570665758,0.97040471,112300.0,112290.0,1.28281299]
[1758570665960,0.97040471,112300.0,112290.0,1.28321299]
[1758570666366,0.97040471,112300.0,112290.0,0.41189299]
[1758570666663,1.6254778,112300.0,112290.0,0.9884599]
[1758570666866,1.6254778,112300.0,112290.0,0.9888599]
[1758570667158,1.714463,112300.0,112290.0,0.00648]
[1758570667660,1.74621447,112300.0,112290.0,0.87724]
[1758570667863,1.74621447,112300.0,112290.0,0.87764]
[1758570668563,1.74621447,112300.0,112290.0,0.9666336]
[1758570669464,1.74621447,112300.0,112290.0,0.9897436]
[1758570669663,1.714463,112300.0,112290.0,0.9893436]
[1758570669961,1.78647657,112300.0,112290.0,0.9897436]
[1758570670364,1.78647657,112300.0,112290.0,0.9666336]
[1758570672065,1.78647657,112300.0,112290.0,0.87764]
[1758570672363,1.80693424,112300.0,112290.0,0.87764]
[1758570674553,1.80693424,112300.0,112290.0,0.00648]
[1758570674960,2.10120733,112300.0,112290.0,0.00648]
[1758570675160,0.1236145,112290.0,112280.0,0.2155]
[1758570675361,1.09612443,112290.0,112280.0,0.2154]
[1758570675561,0.50757825,112290.0,112280.0,0.2154]
[1758570675869,0.1236224,112280.0,112270.0,0.87146]
[1758570676061,1.09613233,112280.0,112270.0,0.87056]
[1758570676566,1.09613233,112280.0,112270.0,0.9825404]
[1758570676770,0.41058375,112280.0,112270.0,1.27641349]
[1758570677060,0.41058375,112280.0,112270.0,1.29033349]
[1758570677263,0.40758375,112280.0,112270.0,1.29033349]
[1758570677461,0.40758375,112280.0,112270.0,1.31500349]
[1758570678066,0.40858375,112280.0,112270.0,1.31900349]
[1758570678462,0.38542,112280.0,112270.0,1.31900349]
[1758570678870,0.39275556,112280.0,112270.0,1.31900349]
[1758570679064,0.48175796,112280.0,112270.0,1.31900349]
[1758570679768,0.38542,112280.0,112270.0,1.31900349]
[1758570680271,0.76869549,112280.0,112270.0,1.30633349]
[1758570680473,0.76869549,112280.0,112270.0,1.31900349]
[1758570681874,0.77601838,112280.0,112270.0,1.31900349]
[1758570682071,0.77601838,112280.0,112270.0,1.22999309]
[1758570682572,0.38285,112280.0,112270.0,1.31900349]
[1758570682761,0.38285,112280.0,112270.0,1.30548349]
[1758570682962,0.38285,112280.0,112270.0,1.31900349]
[1758570683269,0.38285,112280.0,112270.0,1.0247304]
[1758570683473,0.38285,112280.0,112270.0,1.31900349]
[1758570683669,0.4718524,112280.0,112270.0,1.31900349]
[1758570684058,0.38285,112280.0,112270.0,1.31900349]
[1758570685572,0.3618,112280.0,112270.0,1.86327658]
[1758570685975,0.3618,112280.0,112270.0,2.04327658]
[1758570687272,0.3618,112280.0,112270.0,1.17275658]
[1758570687473,0.3618,112280.0,112270.0,2.04243658]
[1758570688477,0.001,112280.0,112270.0,2.04243658]
[1758570688876,0.001,112280.0,112270.0,0.5842104]
[1758570689081,0.001,112280.0,112270.0,1.17275658]
[1758570689378,0.39825,112280.0,112270.0,1.74796349]
[1758570689580,0.38434,112280.0,112270.0,1.74796349]
[1758570689874,0.38434,112280.0,112270.0,0.62848349]
[1758570690075,0.38434,112280.0,112270.0,1.49788349]
[1758570690270,0.39825,112280.0,112270.0,1.49748349]
[1758570690476,0.39825,112280.0,112270.0,1.49788349]
[1758570690670,0.38434,112280.0,112270.0,1.49788349]
[1758570691072,0.38434,112280.0,112270.0,0.62848349]
[1758570691274,0.38434,112280.0,112270.0,0.3342104]
[1758570691775,0.39825,112280.0,112270.0,1.49776349]
[1758570691973,0.39825,112280.0,112270.0,1.31776349]
[1758570692373,0.39825,112280.0,112270.0,0.44848349]
[1758570692574,0.39825,112280.0,112270.0,1.31772349]
[1758570693276,0.38434,112280.0,112270.0,1.31772349]
[1758570694974,0.38434,112280.0,112270.0,1.61199658]
[1758570695175,0.38434,112280.0,112270.0,0.44848349]
[1758570695375,0.38434,112280.0,112270.0,1.31744349]
[1758570695782,0.40751936,112280.0,112270.0,1.31744349]
[1758570697375,0.40751936,112280.0,112270.0,0.44848349]
[1758570697576,0.40751936,112280.0,112270.0,1.59724349]
[1758570698179,0.40751936,112280.0,112270.0,1.31724349]
[1758570698375,0.40751936,112280.0,112270.0,0.44848349]
[1758570698576,0.71570245,112280.0,112270.0,0.1542104]
[1758570698779,1.34897794,112280.0,112270.0,0.1280204]
[1758570698980,1.34897794,112280.0,112270.0,0.1054504]
[1758570699175,1.34897794,112280.0,112270.0,0.8144704]
[1758570699176,0.96570245,112280.0,112270.0,0.8144704]
[1758570699376,0.71570245,112280.0,112270.0,1.10874349]
[1758570699887,1.05470485,112280.0,112270.0,0.88504]
[1758570700374,1.05470485,112280.0,112270.0,0.9956304]
[1758570700575,1.05470485,112280.0,112270.0,0.9952304]
[1758570700771,1.05470485,112280.0,112270.0,0.1270304]
[1758570701082,1.34897794,112280.0,112270.0,0.87904]
[1758570701387,1.34897794,112280.0,112270.0,0.90062]
[1758570701879,1.34897794,112280.0,112270.0,0.88488]
[1758570702080,1.34897794,112280.0,112270.0,0.9738904]
[1758570702585,0.76043176,112280.0,112270.0,0.9954704]
[1758570702780,1.34897794,112280.0,112270.0,0.9738904]
[1758570703080,1.05470485,112280.0,112270.0,1.28958349]
[1758570703276,0.96570245,112280.0,112270.0,1.28958349]
[1758570703475,0.71570245,112280.0,112270.0,1.31643349]
[1758570704982,0.40751936,112280.0,112270.0,1.31643349]
[1758570705186,0.42142936,112280.0,112270.0,1.0221604]
[1758570705370,0.42142936,112280.0,112270.0,1.31643349]
[1758570706184,0.40751936,112280.0,112270.0,1.31643349]
[1758570710179,0.49652176,112280.0,112270.0,1.31643349]
[1758570710584,0.49652176,112280.0,112270.0,0.35914309]
[1758570710884,0.51043176,112280.0,112270.0,1.22678309]
[1758570711073,0.51043176,112280.0,112270.0,1.31579339]
[1758570711875,0.40751936,112280.0,112270.0,1.31579339]
[1758570712883,0.40751936,112280.0,112270.0,1.30227339]
[1758570713086,0.40751936,112280.0,112270.0,1.31579339]
[1758570714880,0.40751936,112280.0,112270.0,1.0215203]
[1758570715080,0.50960166,112280.0,112270.0,0.44815339]
[1758570715281,0.42059936,112280.0,112270.0,1.31539339]
[1758570715478,0.40751936,112280.0,112270.0,1.31539339]
[1758570716282,0.40815936,112280.0,112270.0,0.4038803]
[1758570716479,0.40815936,112280.0,112270.0,1.31527339]
[1758570716777,0.40815936,112280.0,112270.0,1.56527339]
[1758570716983,0.38497936,112280.0,112270.0,1.81527339]
[1758570717281,0.38497936,112280.0,112270.0,2.10954648]
[1758570718082,0.02417936,112280.0,112270.0,2.10954648]
[1758570718581,0.001,112280.0,112270.0,2.10954648]
[1758570720390,0.001,112280.0,112270.0,1.24242648]
[1758570720589,0.001,112280.0,112270.0,2.10914648]
[1758570720886,0.001,112280.0,112270.0,2.46994648]
[1758570723487,0.001,112280.0,112270.0,2.46970648]
[1758570723693,0.001,112280.0,112270.0,1.24242648]
[1758570723900,0.001,112280.0,112270.0,1.2702803]
[1758570724192,0.001,112280.0,112270.0,1.56455339]
[1758570724388,0.001,112280.0,112270.0,1.85882648]
[1758570724579,0.001,112280.0,112270.0,0.79636647]
[1758570724893,0.001,112280.0,112270.0,1.66272647]
[1758570725091,0.001,112280.0,112270.0,0.79636647]
[1758570725394,0.001,112280.0,112270.0,1.66264647]
[1758570726292,0.001,112280.0,112270.0,2.41593264]
[1758570726492,0.001,112280.0,112270.0,2.02344647]
[1758570731689,0.001,112280.0,112270.0,1.15716647]
[1758570732296,0.001,112280.0,112270.0,3.89880647]
[1758570732491,0.001,112280.0,112270.0,1.15716647]
[1758570732892,0.001,112280.0,112270.0,3.89876647]
[1758570733393,0.001,112280.0,112270.0,3.89872647]
[1758570738906,0.001,112280.0,112270.0,3.5062403]
[1758570739094,0.001,112280.0,112270.0,3.89872647]
[1758570740303,0.001,112280.0,112270.0,0.7646803]
[1758570740598,0.001,112280.0,112270.0,2.02236647]
[1758570742605,0.001,112280.0,112270.0,2.00884647]
[1758570743107,0.001,112280.0,112270.0,2.02236647]
[1758570747804,0.001,112280.0,112270.0,1.6298803]
[1758570748005,0.001,112280.0,112270.0,2.02236647]
[1758570748598,0.0001,112290.0,112280.0,0.123872]
[1758570748800,0.36813787,112300.0,112290.0,0.123864]
[1758570749004,0.00763787,112300.0,112290.0,1.73455017]
[1758570749301,0.35932787,112310.0,112300.0,0.1238561]
[1758570749492,0.29141991,112310.0,112300.0,0.83634227]
[1758570750107,0.29181991,112310.0,112300.0,0.83634227]
[1758570750705,0.31880991,112310.0,112300.0,0.51634227]
[1758570750907,0.31880991,112310.0,112300.0,0.79634227]
[1758570751708,0.31980991,112310.0,112300.0,0.79634227]
[1758570751913,0.31980991,112310.0,112300.0,0.4038561]
[1758570752209,0.29781991,112310.0,112300.0,1.38082227]
[1758570752912,0.31980991,112310.0,112300.0,0.51634227]
[1758570753208,0.31980991,112310.0,112300.0,1.38078227]
[1758570754105,0.31980991,112310.0,112300.0,1.38070227]
[1758570754910,0.31980991,112310.0,112300.0,1.67070227]
[1758570755112,0.31980991,112310.0,112300.0,0.51634227]
[1758570755311,0.31980991,112310.0,112300.0,1.38062227]
[1758570755704,0.29781991,112310.0,112300.0,1.69062227]
[1758570756812,0.02978204,112310.0,112300.0,2.05142227]
[1758570757601,0.0064,112310.0,112300.0,2.06494227]
[1758570758608,0.02086817,112320.0,112310.0,0.1028181]
[1758570758800,0.02076817,112320.0,112310.0,1.21065427]
[1758570759307,0.02116817,112320.0,112310.0,2.07669417]
[1758570759808,0.03016817,112320.0,112310.0,1.21365417]
[1758570760007,0.05341437,112320.0,112310.0,2.07765417]
[1758570760215,0.05341437,112320.0,112310.0,0.821168]
[1758570760415,0.05341437,112320.0,112310.0,2.07761417]
[1758570760914,0.05541437,112320.0,112310.0,2.07761417]
[1758570761108,0.05541437,112320.0,112310.0,2.08531553]
[1758570762209,0.05541437,112320.0,112310.0,1.22135553]
[1758570762510,0.05541437,112320.0,112310.0,2.07745417]
[1758570763510,0.05541437,112320.0,112310.0,1.21365417]
[1758570763910,0.05541437,112320.0,112310.0,2.07737417]
[1758570765718,0.05541437,112320.0,112310.0,4.59514034]
[1758570765905,0.02568817,112320.0,112310.0,4.59514034]
[1758570767122,0.02408817,112320.0,112310.0,4.59614034]
[1758570767316,0.01508817,112320.0,112310.0,4.59502034]
[1758570767516,0.01468817,112320.0,112310.0,4.59602034]
[1758570767711,0.01468817,112320.0,112310.0,4.59498034]
[1758570767712,0.01508817,112320.0,112310.0,4.59498034]
[1758570767913,0.01468817,112320.0,112310.0,1.85814034]
[1758570768220,0.01508817,112320.0,112310.0,4.59694034]
[1758570768416,0.01508817,112320.0,112310.0,4.59690034]
[1758570769222,0.01508817,112320.0,112310.0,4.59890034]
[1758570769721,0.01468817,112320.0,112310.0,4.59890034]
[1758570770019,0.01508817,112320.0,112310.0,4.59890034]
[1758570770915,7e-08,112320.0,112310.0,4.59890034]
[1758570771122,0.02199,112350.0,112340.0,0.03487]
[1758570771320,0.04520173,112350.0,112340.0,1.69951057]
[1758570771916,0.04520173,112350.0,112340.0,0.51631057]
[1758570772518,0.0530092,112350.0,112340.0,1.66943057]
[1758570772713,0.0610092,112350.0,112340.0,1.66943057]
[1758570772911,0.03121173,112350.0,112340.0,1.66943057]
[1758570773318,0.03161173,112350.0,112340.0,1.66943057]
[1758570773522,0.03161173,112350.0,112340.0,2.03023057]
[1758570773722,0.03461173,112350.0,112340.0,2.03023057]
[1758570774720,0.06406651,112350.0,112340.0,1.67927057]
[1758570774915,0.06446651,112350.0,112340.0,2.04007057]
[1758570776023,0.05660173,112350.0,112340.0,2.04007057]
[1758570776823,0.05660173,112350.0,112340.0,2.05359057]
[1758570777229,0.05660173,112350.0,112340.0,1.6611044]
[1758570777416,0.05660173,112350.0,112340.0,2.05359057]
[1758570777926,0.05660173,112350.0,112340.0,1.75335057]
[1758570778125,0.05660173,112350.0,112340.0,1.71255057]
[1758570778812,0.06423515,112350.0,112340.0,1.71255057]
[1758570779426,0.06423515,112350.0,112340.0,1.3200644]
[1758570779723,0.06423515,112350.0,112340.0,1.71255057]
[1758570780520,0.06423515,112350.0,112340.0,0.52983057]
[1758570780719,0.06423515,112350.0,112340.0,1.39235057]
[1758570780926,0.06423515,112350.0,112340.0,0.52983057]
[1758570781120,0.43831515,112350.0,112340.0,0.9998644]
[1758570781315,1.08080132,112350.0,112340.0,0.1099844]
[1758570781518,0.68831515,112350.0,112340.0,0.1099844]
[1758570781723,0.66740173,112350.0,112340.0,1.37820057]
[1758570782027,0.03461173,112350.0,112340.0,2.08252057]
[1758570782229,0.03421173,112350.0,112340.0,2.08252057]
[1758570782428,0.03461173,112350.0,112340.0,2.08252057]
[1758570783030,0.0114,112350.0,112340.0,2.08252057]
[1758570783723,0.03463303,112350.0,112340.0,2.08252057]
[1758570784123,0.011,112350.0,112340.0,2.08252057]
[1758570784320,0.03463492,112350.0,112340.0,2.08252057]
[1758570784520,0.0114,112350.0,112340.0,2.08252057]
[1758570784733,0.011,112350.0,112340.0,2.33252057]
[1758570784930,0.0114,112350.0,112340.0,2.33252057]
[1758570785125,0.0114,112350.0,112340.0,2.34022592]
[1758570785833,0.00715468,112360.0,112350.0,0.1240063]
[1758570786027,0.00715468,112360.0,112350.0,1.24081247]
[1758570786229,0.00715468,112360.0,112350.0,1.63329864]
[1758570786430,0.03079249,112360.0,112350.0,1.24081247]
[1758570786629,0.00755468,112360.0,112350.0,1.43612062]
[1758570786830,0.00755468,112360.0,112350.0,4.17316062]
[1758570787030,0.00715468,112360.0,112350.0,4.17316062]
[1758570787231,0.00755468,112360.0,112350.0,4.17316062]
[1758570787432,0.03079302,112360.0,112350.0,4.17316062]
[1758570788034,0.03079468,112360.0,112350.0,2.3623663]
[1758570788235,0.05666686,112360.0,112350.0,4.17308062]
[1758570788536,0.05866686,112360.0,112350.0,2.00466346]
[1758570788730,0.05566686,112360.0,112350.0,1.14222346]
[1758570789036,0.05566686,112360.0,112350.0,0.53182346]
[1758570789236,0.97164402,112360.0,112350.0,1.28030346]
[1758570789433,0.66446686,112360.0,112350.0,1.88420062]
[1758570789640,0.28042686,112360.0,112350.0,1.07260062]
[1758570789842,0.03042686,112360.0,112350.0,2.25848062]
[1758570790939,0.03042686,112360.0,112350.0,1.96458346]
[1758570791335,0.03042686,112360.0,112350.0,2.25848062]
[1758570792148,0.03002686,112360.0,112350.0,2.25848062]
[1758570792444,0.03042686,112360.0,112350.0,2.25848062]
[1758570794343,0.03042686,112360.0,112350.0,1.58740062]
[1758570794546,0.03042686,112360.0,112350.0,1.61740062]
[1758570794846,0.03042686,112360.0,112350.0,1.97820062]
[1758570795649,0.03042686,112360.0,112350.0,2.15820062]
[1758570797253,0.03042686,112360.0,112350.0,1.5704063]
[1758570797452,0.03042686,112360.0,112350.0,2.15820062]
[1758570797752,0.03042686,112360.0,112350.0,1.5704063]
[1758570797949,0.03042686,112360.0,112350.0,2.15820062]
[1758570798556,0.03042686,112360.0,112350.0,2.15796062]
[1758570800257,0.03042686,112360.0,112350.0,1.29652062]
[1758570800660,0.03042686,112360.0,112350.0,2.15780062]
[1758570800854,1.35329958,112360.0,112350.0,0.23261]
[1758570801052,1.35329958,112360.0,112350.0,0.86168]
[1758570801053,1.38505105,112360.0,112350.0,0.86168]
[1758570801252,1.29611265,112360.0,112350.0,0.86128]
[1758570801456,1.29611265,112360.0,112340.0,0.0890534]
[1758570801457,0.03534,112350.0,112340.0,0.31648716]
[1758570801656,0.40546218,112350.0,112340.0,1.57398852]
[1758570801858,0.04466218,112350.0,112340.0,1.57478852]
[1758570802056,0.04466218,112350.0,112340.0,1.57398852]
[1758570802262,0.04466218,112350.0,112340.0,1.57438852]
[1758570802459,0.04506218,112350.0,112340.0,1.57438852]
[1758570803550,0.04506218,112350.0,112340.0,1.93518852]
[1758570804055,0.04466218,112350.0,112340.0,1.93618852]
[1758570804255,0.04506218,112350.0,112340.0,1.93618852]
[1758570804853,0.04506218,112350.0,112340.0,1.93518852]
[1758570806265,0.04506218,112350.0,112340.0,1.07394852]
[1758570806553,0.35213934,112350.0,112340.0,0.1118442]
[1758570806755,0.96293934,112350.0,112340.0,0.9728442]
[1758570806958,0.96293934,112350.0,112340.0,0.1118442]
[1758570807164,0.96293934,112350.0,112340.0,1.28023136]
[1758570807361,0.66904218,112350.0,112340.0,1.57452852]
[1758570808157,0.96293934,112350.0,112340.0,0.40574136]
[1758570808357,0.96293934,112350.0,112340.0,1.17778716]
[1758570808551,0.96293934,112350.0,112340.0,1.26674136]
[1758570808755,0.96293934,112350.0,112340.0,1.26630136]
[1758570808955,0.96293934,112350.0,112340.0,1.26670136]
[1758570809355,0.66904218,112350.0,112340.0,1.26670136]
[1758570809560,0.66904218,112350.0,112340.0,1.56059852]
[1758570809965,0.66904218,112350.0,112340.0,1.57448852]
[1758570811265,0.66904218,112350.0,112340.0,1.28059136]
[1758570811767,0.30824218,112350.0,112340.0,1.28059136]
[1758570812560,0.66904218,112350.0,112340.0,1.28059136]
[1758570812761,0.96293934,112350.0,112340.0,0.02289]
[1758570812963,0.02219,112350.0,112340.0,2.10856852]
[1758570813158,0.02179,112350.0,112340.0,1.3707742]
[1758570813359,0.94006716,112350.0,112340.0,0.02289]
[1758570813562,0.96297019,112350.0,112340.0,0.9725642]
[1758570813759,0.66907303,112350.0,112340.0,0.88321]
[1758570814065,0.96297019,112350.0,112340.0,0.9725642]
[1758570814266,0.96297019,112350.0,112340.0,1.26606136]
[1758570814468,0.66907303,112350.0,112340.0,1.26646136]
[1758570814666,0.96297019,112350.0,112340.0,1.26646136]
[1758570816469,0.66907303,112350.0,112340.0,1.26646136]
[1758570816671,0.66907303,112350.0,112340.0,1.28035136]
[1758570817069,0.96297019,112350.0,112340.0,1.28035136]
[1758570817467,0.66907303,112350.0,112340.0,1.28035136]
[1758570817968,0.04509303,112350.0,112340.0,1.57424852]
[1758570818270,0.04469303,112350.0,112340.0,1.57424852]
[1758570818473,0.04509303,112350.0,112340.0,1.57424852]
[1758570821470,0.05827303,112350.0,112340.0,1.57424852]
[1758570821669,0.05827303,112350.0,112340.0,1.28035136]
[1758570822066,0.04509303,112350.0,112340.0,1.28035136]
[1758570822672,0.04509303,112350.0,112340.0,1.58776852]
[1758570824372,0.04509303,112350.0,112340.0,1.94856852]
[1758570825771,0.04509303,112350.0,112340.0,2.19856852]
[1758570826179,0.04469303,112350.0,112340.0,2.19856852]
[1758570826370,0.02290303,112350.0,112340.0,2.19856852]
[1758570826570,0.02330303,112350.0,112340.0,2.19856852]
[1758570827873,0.0004,112350.0,112340.0,2.54856852]
[1758570828371,0.00795468,112360.0,112350.0,0.1241656]
[1758570828577,0.03089296,112360.0,112350.0,1.08627992]
[1758570828868,0.03049296,112360.0,112350.0,1.08627992]
[1758570829274,0.03009296,112360.0,112350.0,1.08627992]
[1758570829473,0.03049296,112360.0,112350.0,1.08627992]
[1758570829675,0.03249296,112360.0,112350.0,1.08627992]
[1758570830775,0.03549296,112360.0,112350.0,1.33627992]
[1758570831073,0.03549296,112360.0,112350.0,1.66627992]
[1758570831271,0.01215468,112360.0,112350.0,1.66627992]
[1758570831477,0.0001,112380.0,112370.0,0.1241395]
[1758570831675,0.04507807,112390.0,112380.0,0.1241311]
[1758570831867,0.04697158,112390.0,112380.0,1.08624542]
[1758570832063,0.04377158,112390.0,112380.0,1.08624542]
[1758570832269,0.04417158,112390.0,112380.0,1.08624542]
[1758570832464,0.04377158,112390.0,112380.0,1.08624542]
[1758570832660,0.04417158,112390.0,112380.0,1.07272542]
[1758570833075,0.02122807,112390.0,112380.0,1.08624542]
[1758570833470,0.02122807,112390.0,112380.0,1.37624542]
[1758570833676,0.02082807,112390.0,112380.0,1.37624542]
[1758570833875,0.02122807,112390.0,112380.0,1.37624542]
[1758570834071,0.02122807,112390.0,112380.0,2.48584542]
[1758570834273,0.0004,112390.0,112380.0,2.48584542]
[1758570834472,0.002,112390.0,112380.0,2.48584542]
[1758570834782,0.0024,112390.0,112380.0,2.48580542]
[1758570834972,0.002,112390.0,112380.0,2.48580542]
[1758570835170,0.0024,112390.0,112380.0,1.62624542]
[1758570835365,0.0034,112390.0,112380.0,1.37624542]
[1758570835567,0.31901716,112390.0,112380.0,0.72154826]
[1758570835868,0.31901716,112390.0,112380.0,1.37138826]